fUSD/lending_fUSD_20250606
["ID","MTS","AMOUNT","RATE_DAILY","PERIOD"]
[364768924,1749235846586,-151.0,0.00027532,7]
[364768925,1749235846595,-273.50469,0.00027532,7]
[364768926,1749235846605,-273.50469,0.00027532,7]
[364768927,1749235846615,-151.0,0.00027532,7]
[364768928,1749235846624,-151.0,0.00027532,7]
[364768929,1749235846634,-151.0,0.00027532,7]
[364768930,1749235846643,-151.0,0.00027532,7]
[364768931,1749235846653,-151.0,0.00027532,7]
[364768932,1749235846662,-151.0,0.00027532,7]
[364768933,1749235846672,-151.0,0.00027532,7]
[364768934,1749235846683,-216.438203,0.00027532,7]
[364768935,1749235846695,-216.438203,0.00027532,7]
[364768936,1749235846706,-150.0,0.00027534,2]
[364768937,1749235846715,-151.0,0.00027541,7]
[364768938,1749235846725,-151.0,0.00027541,7]
[364768939,1749235846734,-151.0,0.00027541,7]
[364768940,1749235846743,-157.000071,0.00027541,7]
[364768941,1749235846752,-151.0,0.00027541,7]
[364768942,1749235846763,-169.411927,0.00027541,7]
[364768943,1749235846772,-169.411927,0.00027541,7]
[364768944,1749235846782,-151.0,0.00027541,7]
[364768945,1749235846791,-151.0,0.00027541,7]
[364768946,1749235846800,-151.0,0.00027541,7]
[364768947,1749235846810,-151.0,0.00027541,7]
[364768948,1749235846821,-205.683749,0.00027541,7]
[364768949,1749235846830,-156.300374,0.00027541,7]
[364768950,1749235846840,-1814.431584,0.00027541,7]
[364768951,1749235846849,-1814.431584,0.00027541,7]
[364768952,1749235846859,-473.133255,0.00027541,7]
[364768953,1749235846868,-473.133255,0.00027541,7]
[364768954,1749235846878,-237.337415,0.00027541,7]
[364768955,1749235846888,-237.337415,0.00027541,7]
[364768956,1749235846897,-151.0,0.00027541,7]
[364768957,1749235846907,-1346.270536,0.00027541,7]
[364768958,1749235846916,-1346.270536,0.00027541,7]
[364768959,1749235846925,-173.979423,0.00027541,7]
[364768960,1749235846934,-368.908945,0.00027541,7]
[364768961,1749235846943,-173.979423,0.00027541,7]
[364768962,1749235846953,-368.908945,0.00027541,7]
[364768963,1749235846962,-151.0,0.00027541,7]
[364768964,1749235846971,-265.946709,0.00027541,7]
[364768965,1749235846981,-265.946709,0.00027541,7]
[364768966,1749235846990,-151.0,0.00027541,7]
[364768967,1749235846999,-151.0,0.00027541,7]
[364768968,1749235847009,-500.0,0.00027541,5]
[364768969,1749235847018,-87210.34733523,0.00027541,2]
[364768970,1749235847027,-796.14895325,0.00027541,2]
[364768971,1749235847037,-21297.8613836,0.00027542,2]
[364768972,1749235847046,-116513.9696581,0.00027542,2]
[364768973,1749235847055,-3540.6388908,0.00027542,2]
[364768974,1749235847064,-151.0,0.00027542,7]
[364768975,1749235847074,-219.313061,0.00027542,7]
[364768976,1749235847083,-219.313061,0.00027542,7]
[364768977,1749235847092,-151.0,0.00027542,7]
[364768978,1749235847102,-176.665353,0.00027542,7]
[364768979,1749235847112,-151.0,0.00027542,7]
[364768980,1749235847122,-151.0,0.00027542,7]
[364768981,1749235847131,-1437.37431,0.00027542,7]
[364768982,1749235847141,-154.300772,0.00027542,7]
[364768983,1749235847150,-1437.37431,0.00027542,7]
[364768984,1749235847160,-273.28650428,0.00027551,2]
[364768985,1749235847170,-210.989504,0.00027551,7]
[364768986,1749235847179,-193.744307,0.00027551,7]
[364768987,1749235847189,-193.744307,0.00027551,7]
[364768988,1749235847199,-9228.148532,0.00027551,7]
[364768989,1749235847209,-9228.148532,0.00027551,7]
[364768990,1749235847218,-214.477622,0.00027551,7]
[364768991,1749235847227,-214.477622,0.00027551,7]
[364768992,1749235847237,-150.0,0.00027551,2]
[364768993,1749235847248,-150.0,0.00027553,2]
[364768994,1749235847257,-907.91363961,0.00027555,17]
[364768995,1749235847267,-207.47516803,0.00027558,7]
[364768996,1749235847276,-500.0,0.00027559,5]
[364768997,1749235847285,-300.0,0.00027559,10]
[364768998,1749235847295,-669.26835067,0.0002756,10]
[364768999,1749235847304,-157.1,0.0002756,2]
[364769000,1749235847313,-500.0,0.0002756,2]
[364769001,1749235847323,-500.0,0.0002756,2]
[364769002,1749235847332,-500.0,0.0002756,2]
[364769003,1749235847341,-500.0,0.0002756,2]
[364769004,1749235847351,-500.0,0.0002756,2]
[364769005,1749235847360,-500.0,0.0002756,2]
[364769006,1749235847369,-500.0,0.0002756,2]
[364769007,1749235847378,-500.0,0.0002756,2]
[364769008,1749235847387,-500.0,0.0002756,2]
[364769009,1749235847396,-500.0,0.0002756,2]
[364769010,1749235847406,-479.33282742,0.0002756,2]
[364769011,1749235847415,-151.0,0.0002756,7]
[364769012,1749235847423,-151.0,0.0002756,7]
[364769013,1749235847433,-151.0,0.0002756,7]
[364769014,1749235847442,-151.0,0.0002756,7]
[364769015,1749235847451,-151.0,0.0002756,7]
[364769016,1749235847460,-151.0,0.0002756,7]
[364769017,1749235847470,-220.203666,0.0002756,7]
[364769018,1749235847478,-182.794455,0.0002756,7]
[364769019,1749235847488,-151.0,0.0002756,7]
[364769020,1749235847497,-182.794455,0.0002756,7]
[364769021,1749235847506,-151.0,0.0002756,7]
[364769022,1749235847515,-273.50469,0.0002756,7]
[364769023,1749235847524,-273.50469,0.0002756,7]
[364769024,1749235847533,-151.0,0.0002756,7]
[364769025,1749235847543,-151.0,0.0002756,7]
[364769026,1749235847552,-151.0,0.0002756,7]
[364769027,1749235847562,-151.0,0.0002756,7]
[364769028,1749235847572,-151.0,0.0002756,7]
[364769029,1749235847582,-151.0,0.0002756,2]
[364769030,1749235847591,-151.0,0.0002756,2]
[364769031,1749235847601,-151.0,0.0002756,2]
[364769032,1749235847611,-151.0,0.0002756,2]
[364769033,1749235847620,-151.0,0.0002756,2]
[364769034,1749235847629,-151.0,0.0002756,2]
[364769035,1749235847639,-151.0,0.0002756,2]
[364769036,1749235847647,-151.0,0.0002756,2]
[364769037,1749235847656,-151.0,0.0002756,2]
[364769038,1749235847665,-151.0,0.0002756,2]
[364769039,1749235847674,-151.0,0.0002756,2]
[364769040,1749235847684,-151.0,0.0002756,2]
[364769041,1749235847697,-151.0,0.0002756,2]
[364769042,1749235847707,-151.0,0.0002756,2]
[364769043,1749235847716,-151.0,0.0002756,2]
[364769044,1749235847724,-151.0,0.0002756,2]
[364769045,1749235847733,-151.0,0.0002756,2]
[364769046,1749235847742,-151.0,0.0002756,2]
[364769047,1749235847751,-151.0,0.0002756,2]
[364769048,1749235847760,-151.0,0.0002756,2]
[364769049,1749235847769,-151.0,0.0002756,2]
[364769050,1749235847778,-151.0,0.0002756,2]
[364769051,1749235847787,-151.0,0.0002756,2]
[364769052,1749235847795,-151.0,0.0002756,2]
[364769053,1749235847804,-151.0,0.0002756,2]
[364769054,1749235847813,-151.0,0.0002756,2]
[364769055,1749235847823,-151.0,0.0002756,2]
[364769056,1749235847833,-151.0,0.0002756,2]
[364769057,1749235847842,-151.0,0.0002756,2]
[364769058,1749235847853,-151.0,0.0002756,2]
[364769059,1749235847862,-151.0,0.0002756,2]
[364769060,1749235847872,-151.0,0.0002756,2]
[364769061,1749235847881,-151.0,0.0002756,2]
[364769062,1749235847890,-151.0,0.0002756,2]
[364769063,1749235847901,-151.0,0.0002756,2]
[364769064,1749235847911,-151.0,0.0002756,2]
[364769065,1749235847922,-160.382173,0.0002756,2]
[364769066,1749235847932,-151.0,0.0002756,7]
[364769067,1749235847942,-151.0,0.0002756,7]
[364769068,1749235847951,-151.0,0.0002756,7]
[364769069,1749235847960,-252.915718,0.0002756,7]
[364769070,1749235847970,-252.915718,0.0002756,7]
[364769071,1749235847980,-1272.534564,0.0002756,7]
[364769072,1749235847990,-1272.534564,0.0002756,7]
[364769073,1749235847999,-151.0,0.0002756,7]
[364769074,1749235848008,-216.438203,0.0002756,7]
[364769075,1749235848018,-216.438203,0.0002756,7]
[364769076,1749235848027,-560.6,0.0002756,5]
[364769077,1749235848036,-560.6,0.0002756,5]
[364769078,1749235848045,-560.6,0.0002756,5]
[364769079,1749235848055,-560.6,0.0002756,5]
[364769080,1749235848065,-560.6,0.0002756,5]
[364769081,1749235848075,-560.6,0.0002756,5]
[364769082,1749235848084,-560.6,0.0002756,5]
[364769083,1749235848093,-560.6,0.0002756,5]
[364769084,1749235848103,-560.6,0.0002756,5]
[364769085,1749235848112,-560.6,0.0002756,5]
[364769086,1749235848122,-560.6,0.0002756,5]
[364769087,1749235848131,-560.6,0.0002756,5]
[364769088,1749235848140,-560.6,0.0002756,5]
[364769089,1749235848150,-560.6,0.0002756,5]
[364769090,1749235848160,-560.6,0.0002756,5]
[364769091,1749235848170,-560.6,0.0002756,5]
[364769092,1749235848180,-560.6,0.0002756,5]
[364769093,1749235848190,-560.81101133,0.0002756,5]
[364769094,1749235848200,-500.0,0.0002756,5]
[364769095,1749235848209,-500.0,0.0002756,5]
[364769096,1749235848219,-500.0,0.0002756,5]
[364769097,1749235848229,-500.0,0.0002756,5]
[364769098,1749235848239,-500.0,0.0002756,5]
[364769099,1749235848248,-500.0,0.0002756,5]
[364769100,1749235848258,-500.0,0.0002756,5]
[364769101,1749235848268,-500.0,0.0002756,5]
[364769102,1749235848277,-500.0,0.0002756,5]
[364769103,1749235848287,-500.0,0.0002756,5]
[364769104,1749235848296,-500.0,0.0002756,5]
[364769105,1749235848306,-475.18,0.0002756,5]
[364769106,1749235848315,-208.232114,0.00027561,7]
[364769107,1749235848324,-208.232114,0.00027561,7]
[364769108,1749235848334,-151.0,0.00027561,7]
[364769109,1749235848343,-151.0,0.00027561,7]
[364769110,1749235848353,-360.912589,0.00027561,7]
[364769111,1749235848363,-991.618317,0.00027561,7]
[364769112,1749235848373,-188.708177,0.00027561,7]
[364769113,1749235848382,-151.0,0.00027561,7]
[364769114,1749235848392,-188.708177,0.00027561,7]
[364769115,1749235848401,-341.15362,0.00027561,7]
[364769116,1749235848411,-341.15362,0.00027561,7]
[364769117,1749235848420,-383.34317481,0.00027561,5]
[364769118,1749235848430,-189.428531,0.00027561,7]
[364769119,1749235848441,-189.428531,0.00027561,7]
[364769120,1749235848450,-172.711447,0.00027561,7]
[364769121,1749235848460,-172.711447,0.00027561,7]
[364769122,1749235848470,-168.77765,0.00027561,7]
[364769123,1749235848480,-151.0,0.00027561,7]
[364769124,1749235848489,-1062.011773,0.00027561,5]
[364769125,1749235848499,-151.0,0.00027561,7]
[364769126,1749235848508,-1179.930096,0.00027561,5]
[364769127,1749235848518,-151.0,0.00027561,7]
[364769128,1749235848527,-1525.387214,0.00027561,7]
[364769129,1749235848537,-1525.387214,0.00027561,7]
[364769130,1749235848546,-600.0,0.00027561,30]
[364769131,1749235848556,-426.807301,0.00027561,7]
[364769132,1749235848566,-480.0,0.00027561,5]
[364769133,1749235848575,-480.0,0.00027561,5]
[364769134,1749235848585,-480.0,0.00027561,5]
[364769135,1749235848595,-426.807301,0.00027561,7]
[364769136,1749235848605,-480.0,0.00027561,5]
[364769137,1749235848615,-480.0,0.00027561,5]
[364769138,1749235848624,-364.48793835,0.00027561,5]
[364769139,1749235848634,-151.0,0.00027561,7]
[364769140,1749235848643,-480.0,0.00027561,5]
[364769141,1749235848652,-151.0,0.00027561,7]
[364769142,1749235848662,-624.93756288,0.00027561,5]
[364769143,1749235848672,-193.744307,0.00027561,7]
[364769144,1749235848682,-193.744307,0.00027561,7]
[364769145,1749235848694,-189.54832,0.00027561,5]
[364769146,1749235848703,-480.0,0.00027561,5]
[364769147,1749235848714,-964.33,0.00027561,5]
[364769148,1749235848723,-480.0,0.00027561,5]
[364769149,1749235848734,-151.0,0.00027561,7]
[364769150,1749235848744,-151.0,0.00027561,7]
[364769151,1749235848753,-480.0,0.00027561,5]
[364769152,1749235848765,-480.0,0.00027561,5]
[364769153,1749235848775,-480.0,0.00027561,5]
[364769154,1749235848784,-508.62,0.00027561,5]
[364769155,1749235848793,-348.052978,0.00027561,5]
[364769156,1749235848803,-690.93,0.00027561,5]
[364769157,1749235848813,-480.0,0.00027561,5]
[364769158,1749235848822,-480.0,0.00027561,5]
[364769159,1749235848832,-480.0,0.00027561,5]
[364769160,1749235848841,-480.0,0.00027561,5]
[364769161,1749235848852,-480.0,0.00027561,5]
[364769162,1749235848861,-480.0,0.00027561,5]
[364769163,1749235848871,-480.0,0.00027561,5]
[364769164,1749235848880,-480.0,0.00027561,5]
[364769165,1749235848890,-208.677067,0.00027561,5]
[364769166,1749235848899,-151.0,0.00027561,7]
[364769167,1749235848908,-151.0,0.00027561,7]
[364769168,1749235848918,-151.0,0.00027561,7]
[364769169,1749235848927,-480.0,0.00027561,5]
[364769170,1749235848937,-480.0,0.00027561,5]
[364769171,1749235848946,-571.03,0.00027561,5]
[364769172,1749235848955,-480.0,0.00027561,5]
[364769173,1749235848964,-480.0,0.00027561,5]
[364769174,1749235848973,-480.0,0.00027561,5]
[364769175,1749235848983,-480.0,0.00027561,5]
[364769176,1749235848992,-395.4216793,0.00027561,5]
[364769177,1749235849001,-609.55,0.00027561,5]
[364769178,1749235849009,-182.794455,0.00027561,7]
[364769179,1749235849019,-151.0,0.00027561,7]
[364769180,1749235849028,-480.0,0.00027561,5]
[364769181,1749235849037,-182.794455,0.00027561,7]
[364769182,1749235849047,-239.38903,0.00027561,7]
[364769183,1749235849056,-480.0,0.00027561,5]
[364769184,1749235849065,-480.0,0.00027561,5]
[364769185,1749235849075,-239.38903,0.00027561,7]
[364769186,1749235849084,-480.0,0.00027561,5]
[364769187,1749235849094,-480.0,0.00027561,5]
[364769188,1749235849104,-151.0,0.00027561,7]
[364769189,1749235849113,-480.0,0.00027561,5]
[364769190,1749235849123,-273.50469,0.00027561,7]
[364769191,1749235849132,-480.0,0.00027561,5]
[364769192,1749235849142,-480.0,0.00027561,5]
[364769193,1749235849152,-273.50469,0.00027561,7]
[364769194,1749235849161,-480.0,0.00027561,5]
[364769195,1749235849171,-480.0,0.00027561,5]
[364769196,1749235849180,-299.478745,0.00027561,7]
[364769197,1749235849190,-151.0,0.00027561,7]
[364769198,1749235849199,-1793.96,0.00027561,5]
[364769199,1749235849208,-152.238814,0.00027561,7]
[364769200,1749235849218,-551.38,0.00027561,5]
[364769201,1749235849227,-480.0,0.00027561,5]
[364769202,1749235849236,-546.7,0.00027561,5]
[364769203,1749235849246,-151.0,0.00027561,7]
[364769204,1749235849254,-480.0,0.00027561,5]
[364769205,1749235849263,-480.0,0.00027561,5]
[364769206,1749235849272,-480.0,0.00027561,5]
[364769207,1749235849281,-153.37547,0.00027561,7]
[364769208,1749235849289,-1354.37,0.00027561,5]
[364769209,1749235849298,-522.46857005,0.00027561,5]
[364769210,1749235849306,-584.41,0.00027561,5]
[364769211,1749235849315,-480.0,0.00027561,5]
[364769212,1749235849323,-1112.34,0.00027561,5]
[364769213,1749235849331,-480.0,0.00027561,5]
[364769214,1749235849339,-543.84,0.00027561,5]
[364769215,1749235849349,-737.63,0.00027561,5]
[364769216,1749235849359,-480.0,0.00027561,5]
[364769217,1749235849368,-670.01,0.00027561,5]
[364769218,1749235849376,-480.0,0.00027561,5]
[364769219,1749235849385,-857.5,0.00027561,5]
[364769220,1749235849394,-480.0,0.00027561,5]
[364769221,1749235849402,-1211.97,0.00027561,5]
[364769222,1749235849411,-480.0,0.00027561,5]
[364769223,1749235849420,-480.0,0.00027561,5]
[364769224,1749235849427,-480.0,0.00027561,5]
[364769225,1749235849434,-151.0,0.00027561,7]
[364769226,1749235849442,-151.0,0.00027561,7]
[364769227,1749235849451,-1137.45,0.00027561,5]
[364769228,1749235849460,-480.0,0.00027561,5]
[364769229,1749235849468,-480.0,0.00027561,5]
[364769230,1749235849476,-1345.48,0.00027561,5]
[364769231,1749235849483,-540.28,0.00027561,5]
[364769232,1749235849489,-480.0,0.00027561,5]
[364769233,1749235849497,-480.0,0.00027561,5]
[364769234,1749235849504,-232.37679818,0.00027561,5]
[364769235,1749235849511,-523.81,0.00027561,5]
[364769236,1749235849518,-890.72,0.00027561,5]
[364769237,1749235849526,-480.0,0.00027561,5]
[364769238,1749235849533,-395.96491286,0.00027561,5]
[364769239,1749235849540,-151.0,0.00027561,7]
[364769240,1749235849547,-480.0,0.00027561,5]
[364769241,1749235849555,-705.7,0.00027561,5]
[364769242,1749235849561,-772.83,0.00027561,5]
[364769243,1749235849569,-546.63,0.00027561,5]
[364769244,1749235849576,-480.0,0.00027561,5]
[364769245,1749235849584,-480.0,0.00027561,5]
[364769246,1749235849592,-181.65256559,0.00027561,5]
[364769247,1749235849601,-907.7,0.00027561,5]
[364769248,1749235849611,-480.0,0.00027561,5]
[364769249,1749235849621,-626.44,0.00027561,5]
[364769250,1749235849631,-480.0,0.00027561,5]
[364769251,1749235849641,-480.0,0.00027561,5]
[364769252,1749235849651,-480.0,0.00027561,5]
[364769253,1749235849661,-527.13,0.00027561,5]
[364769254,1749235849671,-480.0,0.00027561,5]
[364769255,1749235849680,-480.0,0.00027561,5]
[364769256,1749235849692,-480.0,0.00027561,5]
[364769257,1749235849702,-480.0,0.00027561,5]
[364769258,1749235849712,-169.411927,0.00027561,7]
[364769259,1749235849722,-680.1,0.00027561,5]
[364769260,1749235849733,-169.411927,0.00027561,7]
[364769261,1749235849743,-480.0,0.00027561,5]
[364769262,1749235849753,-480.0,0.00027561,5]
[364769263,1749235849762,-480.0,0.00027561,5]
[364769264,1749235849774,-480.0,0.00027561,5]
[364769265,1749235849784,-169.411927,0.00027561,7]
[364769266,1749235849793,-480.0,0.00027561,5]
[364769267,1749235849803,-169.411927,0.00027561,7]
[364769268,1749235849812,-9228.148532,0.00027561,7]
[364769269,1749235849822,-1026.69,0.00027561,5]
[364769270,1749235849832,-480.0,0.00027561,5]
[364769271,1749235849842,-480.0,0.00027561,5]
[364769272,1749235849853,-9228.148532,0.00027561,7]
[364769273,1749235849863,-1021.79,0.00027561,5]
[364769274,1749235849873,-632.33,0.00027561,5]
[364769275,1749235849883,-480.0,0.00027561,5]
[364769276,1749235849893,-567.69,0.00027561,5]
[364769277,1749235849903,-480.0,0.00027561,5]
[364769278,1749235849913,-480.0,0.00027561,5]
[364769279,1749235849923,-1155.48,0.00027561,5]
[364769280,1749235849934,-1973.737762,0.00027561,7]
[364769281,1749235849944,-464.42401485,0.00027561,5]
[364769282,1749235849954,-480.0,0.00027561,5]
[364769283,1749235849964,-1973.737762,0.00027561,7]
[364769284,1749235849974,-783.35,0.00027561,5]
[364769285,1749235849985,-183.63,0.00027561,5]
[364769286,1749235849995,-151.0,0.00027561,7]
[364769287,1749235850005,-151.0,0.00027561,7]
[364769288,1749235850015,-480.0,0.00027561,5]
[364769289,1749235850025,-1021.44,0.00027561,5]
[364769290,1749235850035,-1360.94,0.00027561,5]
[364769291,1749235850044,-151.0,0.00027561,7]
[364769292,1749235850054,-565.65,0.00027561,5]
[364769293,1749235850064,-480.0,0.00027561,5]
[364769294,1749235850073,-614.29,0.00027561,5]
[364769295,1749235850083,-480.0,0.00027561,5]
[364769296,1749235850093,-843.01,0.00027561,5]
[364769297,1749235850103,-480.0,0.00027561,5]
[364769298,1749235850113,-659.74,0.00027561,5]
[364769299,1749235850122,-480.0,0.00027561,5]
[364769300,1749235850132,-480.0,0.00027561,5]
[364769301,1749235850142,-480.0,0.00027561,5]
[364769302,1749235850151,-820.86,0.00027561,5]
[364769303,1749235850161,-524.03,0.00027561,5]
[364769304,1749235850171,-480.0,0.00027561,5]
[364769305,1749235850181,-480.0,0.00027561,5]
[364769306,1749235850191,-480.0,0.00027561,5]
[364769307,1749235850201,-480.0,0.00027561,5]
[364769308,1749235850211,-743.46,0.00027561,5]
[364769309,1749235850221,-515.32,0.00027561,5]
[364769310,1749235850230,-1790.46,0.00027561,5]
[364769311,1749235850239,-151.0,0.00027561,7]
[364769312,1749235850248,-151.0,0.00027561,7]
[364769313,1749235850258,-151.0,0.00027561,7]
[364769314,1749235850267,-151.0,0.00027561,7]
[364769315,1749235850277,-480.0,0.00027561,5]
[364769316,1749235850286,-747.94,0.00027561,5]
[364769317,1749235850296,-480.0,0.00027561,5]
[364769318,1749235850306,-628.98,0.00027561,5]
[364769319,1749235850316,-480.0,0.00027561,5]
[364769320,1749235850325,-1814.431584,0.00027561,7]
[364769321,1749235850335,-480.0,0.00027561,5]
[364769322,1749235850345,-1814.431584,0.00027561,7]
[364769323,1749235850356,-480.0,0.00027561,5]
[364769324,1749235850365,-480.0,0.00027561,5]
[364769325,1749235850375,-491.43,0.00027561,5]
[364769326,1749235850385,-1814.431584,0.00027561,7]
[364769327,1749235850394,-1814.431584,0.00027561,7]
[364769328,1749235850404,-480.0,0.00027561,5]
[364769329,1749235850413,-480.0,0.00027561,5]
[364769330,1749235850423,-1093.03,0.00027561,5]
[364769331,1749235850432,-871.47,0.00027561,5]
[364769332,1749235850442,-480.0,0.00027561,5]
[364769333,1749235850451,-473.133255,0.00027561,7]
[364769334,1749235850461,-473.133255,0.00027561,7]
[364769335,1749235850471,-480.0,0.00027561,5]
[364769336,1749235850481,-191.80958,0.00027561,7]
[364769337,1749235850491,-951.65,0.00027561,5]
[364769338,1749235850501,-872.07,0.00027561,5]
[364769339,1749235850510,-473.133255,0.00027561,7]
[364769340,1749235850520,-473.133255,0.00027561,7]
[364769341,1749235850529,-237.337415,0.00027561,7]
[364769342,1749235850539,-237.337415,0.00027561,7]
[364769343,1749235850548,-480.0,0.00027561,5]
[364769344,1749235850558,-480.0,0.00027561,5]
[364769345,1749235850568,-480.0,0.00027561,5]
[364769346,1749235850577,-237.337415,0.00027561,7]
[364769347,1749235850587,-237.337415,0.00027561,7]
[364769348,1749235850596,-480.0,0.00027561,5]
[364769349,1749235850606,-480.0,0.00027561,5]
[364769350,1749235850616,-941.69,0.00027561,5]
[364769351,1749235850626,-151.0,0.00027561,7]
[364769352,1749235850636,-151.0,0.00027561,7]
[364769353,1749235850647,-1438.07,0.00027561,5]
[364769354,1749235850657,-480.0,0.00027561,5]
[364769355,1749235850667,-580.42,0.00027561,5]
[364769356,1749235850677,-1749.13,0.00027561,5]
[364769357,1749235850689,-480.0,0.00027561,5]
[364769358,1749235850699,-151.0,0.00027561,7]
[364769359,1749235850708,-668.14,0.00027561,5]
[364769360,1749235850719,-151.0,0.00027561,7]
[364769361,1749235850728,-845.16,0.00027561,5]
[364769362,1749235850738,-546.00460795,0.00027561,5]
[364769363,1749235850748,-933.69,0.00027561,5]
[364769364,1749235850757,-575.4,0.00027561,5]
[364769365,1749235850770,-480.0,0.00027561,5]
[364769366,1749235850780,-480.0,0.00027561,5]
[364769367,1749235850790,-963.26,0.00027561,5]
[364769368,1749235850800,-480.0,0.00027561,5]
[364769369,1749235850809,-460.0,0.00027561,5]
[364769370,1749235850819,-509.1,0.00027561,5]
[364769371,1749235850829,-1346.270536,0.00027561,7]
[364769372,1749235850839,-1346.270536,0.00027561,7]
[364769373,1749235850849,-480.0,0.00027561,5]
[364769374,1749235850859,-1346.270536,0.00027561,7]
[364769375,1749235850870,-1346.270536,0.00027561,7]
[364769376,1749235850889,-903.81,0.00027561,5]
[364769377,1749235850900,-454.52878552,0.00027561,5]
[364769378,1749235850911,-480.0,0.00027561,5]
[364769379,1749235850921,-480.0,0.00027561,5]
[364769380,1749235850931,-480.0,0.00027561,5]
[364769381,1749235850941,-943.41,0.00027561,5]
[364769382,1749235850952,-10217.29,0.00027561,5]
[364769383,1749235850962,-1010.33,0.00027561,5]
[364769384,1749235850972,-586.96,0.00027561,5]
[364769385,1749235850982,-480.0,0.00027561,5]
[364769386,1749235850993,-2799.69,0.00027561,5]
[364769387,1749235851003,-214.477622,0.00027561,7]
[364769388,1749235851013,-480.0,0.00027561,5]
[364769389,1749235851023,-554.38,0.00027561,5]
[364769390,1749235851034,-214.477622,0.00027561,7]
[364769391,1749235851045,-480.0,0.00027561,5]
[364769392,1749235851056,-819.94,0.00027561,5]
[364769393,1749235851068,-480.0,0.00027561,5]
[364769394,1749235851078,-480.0,0.00027561,5]
[364769395,1749235851089,-572.92,0.00027561,5]
[364769396,1749235851099,-1896.47,0.00027561,5]
[364769397,1749235851109,-561.74,0.00027561,5]
[364769398,1749235851119,-1839.01,0.00027561,5]
[364769399,1749235851129,-544.49,0.00027561,5]
[364769400,1749235851139,-480.0,0.00027561,5]
[364769401,1749235851149,-480.0,0.00027561,5]
[364769402,1749235851159,-2277.79,0.00027561,5]
[364769403,1749235851172,-1403.13,0.00027561,5]
[364769404,1749235851182,-1332.21,0.00027561,5]
[364769405,1749235851192,-842.76,0.00027561,5]
[364769406,1749235851204,-3156.15,0.00027561,5]
[364769407,1749235851214,-1138.57,0.00027561,5]
[364769408,1749235851224,-480.0,0.00027561,5]
[364769409,1749235851234,-9036.88,0.00027561,5]
[364769410,1749235851245,-632.23,0.00027561,5]
[364769411,1749235851255,-1611.29,0.00027561,5]
[364769412,1749235851267,-985.57,0.00027561,5]
[364769413,1749235851279,-480.0,0.00027561,5]
[364769414,1749235851290,-480.0,0.00027561,5]
[364769415,1749235851300,-252.915718,0.00027561,7]
[364769416,1749235851311,-173.979423,0.00027561,7]
[364769417,1749235851323,-3231.1,0.00027561,5]
[364769418,1749235851333,-1128.22,0.00027561,5]
[364769419,1749235851343,-173.979423,0.00027561,7]
[364769420,1749235851354,-480.0,0.00027561,5]
[364769421,1749235851364,-368.908945,0.00027561,7]
[364769422,1749235851376,-252.915718,0.00027561,7]
[364769423,1749235851386,-368.908945,0.00027561,7]